Cogmind - Beta 13 @@@ ROGUE MODE // 2024.05.24 @ 16:19:20 Player: Don Result: Destroyed by S-10 Pest with Light Assault Rifle Performance ------------- Evolutions (1) 500 Regions Visited (3) 600 Robots Destroyed (12) 60 Value Destroyed (418) 418 Prototype IDs (0) 0 Alien Tech Used (0) 0 Bonus (200) 200 TOTAL SCORE: 1778 Bonus ------- Pacifist 200 Cogmind --------- Core Integrity 0/400 Matter 273/300 Energy 265/265 System Corruption 4% Temperature Cool (0) Movement Walking (120) Location -9/Materials Parts ------- > --- POWER (1) -------- Improved Ion Engine > --- PROPULSION (3) --- Aluminum Leg Aluminum Leg Aluminum Leg > --- UTILITY (3) ------ Heat Sink Medium Storage Unit Light Armor Plating > --- WEAPON (2) ------- Assault Rifle Light Assault Rifle > --- INVENTORY (10) --- Light Treads Aluminum Leg Aluminum Leg Heat Sink Large Storage Unit Medium Matter Pod (100) Assault Rifle Assault Rifle Assault Rifle Heavy Assault Rifle Peak State ------------ > --- POWER ------------ Improved Ion Engine > --- PROPULSION ------- Aluminum Leg Aluminum Leg Aluminum Leg > --- UTILITY ---------- Medium Storage Unit Medium Matter Pod Light Armor Plating > --- WEAPON ----------- Assault Rifle Assault Rifle > --- INVENTORY -------- Light Treads Aluminum Leg Compact Wheel Large Storage Unit Assault Rifle Assault Rifle Assault Rifle Assault Rifle Heavy Assault Rifle [Rating: 11] Favorites ----------- Power Ion Engine Engine Ion Engine Propulsion Aluminum Leg Treads Light Treads Leg Aluminum Leg Wheel Wheel Utility Medium Storage Unit Device Heat Sink Storage Medium Storage Unit Protection Light Armor Plating Weapon Assault Rifle Energy Gun Medium Laser Ballistic Gun Assault Rifle Build | -11 -10 -10 -9 ------- Run | Yrd Mat Min Mat Slots Evolved 2 | . . . 2 Power . | . . . . Propulsion 1 | . . . 1 Utility 1 | . . . 1 Weapon . | . . . . Parts Attached 29 | 8 1 . 20 Power 3 | 1 . . 2 Engine 3 | 1 . . 2 Core . | . . . . Reactor . | . . . . Propulsion 12 | 4 . . 8 Treads 3 | . . . 3 Leg 7 | 2 . . 5 Wheel 2 | 2 . . . Hover . | . . . . Flight . | . . . . Utility 6 | 1 1 . 4 Device 2 | . . . 2 Storage 3 | 1 1 . 1 Processor . | . . . . Hackware . | . . . . Protection 1 | . . . 1 Artifact . | . . . . Weapon 8 | 2 . . 6 Energy Gun 4 | 2 . . 2 Energy Cannon . | . . . . Ballistic Gun 4 | . . . 4 Ballistic Cannon . | . . . . Launcher . | . . . . Special Weapon . | . . . . Impact Weapon . | . . . . Slashing Weapon . | . . . . Piercing Weapon . | . . . . Special Melee Weapon . | . . . . Unidentified Prototypes . | . . . . Corrupted Parts 1 | . . . 1 System Corruption 4 | . . . 4 Parts Lost 10 | . . . 10 Power 2 | . . . 2 Propulsion 4 | . . . 4 Utility 1 | . . . 1 Weapon 3 | . . . 3 Highest Loss Streak 5 | . . . 5 To Critical Strikes . | . . . . Average Slot Usage (%) 85 | . 86 85 85 Engine 11 | . 14 14 10 Treads 4 | . . . 6 Leg 16 | . . . 22 Wheel 9 | . 28 28 3 Device 3 | . . . 5 Storage 12 | . 15 14 11 Protection 4 | . . . 5 Energy Gun 11 | . 28 28 5 Ballistic Gun 10 | . . . 13 Naked Turns . | . . . . Heaviest Build 26 | 14 19 19 26 Greatest Support 40 | 26 26 26 40 Greatest Overweight (x) 1 | 1 . . 1 Average Overweight (x) . | . . . . Largest Inventory Capacity 10 | 8 10 10 10 Average Capacity 9 | 7 9 10 10 Most Carried 10 | 8 7 7 10 Average Carried 7 | 5 6 7 8 Final Capacity 10 | 8 10 10 10 Final Carried 10 | 6 7 7 10 Class Distribution -------------------- 60% | Mutant 39% | Scavenger-Mutant Dominant Class ---------------- Mutant | -10/Materials Mutant | -10/Mines Scavenger-Mutant | -9/Materials Resources | -11 -10 -10 -9 ----------- Run | Yrd Mat Min Mat Matter Collected 643 | 256 . . 387 Remotely . | . . . . Salvage Created 457 | . . . 457 Parts 28 | . . . 28 Haulers Intercepted . | . . . . Recyclers Shooed . | . . . . Parts Field Recycled . | . . . . Retrieved Matter . | . . . . Parts Self-Destructed . | . . . . Prevented . | . . . . Kills | -11 -10 -10 -9 ------- Run | Yrd Mat Min Mat Combat Hostiles Destroyed 12 | . . . 12 Guns 11 | . . . 11 Classes Destroyed 4 | . . . 4 Swarmer 2 | . . . 2 Grunt 7 | . . . 7 Duelist 1 | . . . 1 Sentry 2 | . . . 2 Best Kill Streak 4 | . . . 4 Combat Bots Only 4 | . . . 4 Max Kills in Single Turn 1 | . . . 1 Gunslinging . | . . . . Exploded . | . . . . Melee . | . . . . Uniques/NPCs Destroyed . | . . . . Combat | -11 -10 -10 -9 -------- Run | Yrd Mat Min Mat Hostile Shots Fired 178 | . . . 178 Missed 45 | . . . 45 Damage Taken 1642 | . . . 1642 Core 401 | . . . 401 Absorbed by Shields . | . . . . Core Remaining (%) 100 | 100 . 100 . Volleys Fired 44 | . . . 44 Largest 2 | . . . 2 Hottest 100 | . . . 100 Shots Fired 83 | . . . 83 Gun 83 | . . . 83 Cannon . | . . . . Launcher . | . . . . Special . | . . . . Kinetic 46 | . . . 46 Thermal 24 | . . . 24 Explosive . | . . . . Electromagnetic 13 | . . . 13 Robot Hit Streak 6 | . . . 6 Robot Miss Streak 3 | . . . 3 Penetration Max . | . . . . Secondary Targets 1 | . . . 1 Max Gunslinging Chain 1 | . . . 1 Shots Hit Robots 54 | . . . 54 Core Hits 26 | . . . 26 Critical Kills . | . . . . Critical Parts Destroyed . | . . . . Critical Strikes 1 | . . . 1 Corrupt 1 | . . . 1 Melee Attacks . | . . . . Impact . | . . . . Slashing . | . . . . Piercing . | . . . . Sneak Attacks . | . . . . Combat Hostiles . | . . . . Follow-up Attacks . | . . . . Damage Inflicted 704 | . . . 704 Guns 693 | . . . 693 Cannons . | . . . . Explosions . | . . . . Melee . | . . . . Ramming 11 | . . . 11 Kinetic 330 | . . . 330 Thermal 204 | . . . 204 Explosive . | . . . . Electromagnetic 159 | . . . 159 Impact . | . . . . Slashing . | . . . . Piercing . | . . . . Highest Corruption 4 | . . . 4 Average Corruption 4 | . . . 4 Corruption Purged . | . . . . Corruption Blocked . | . . . . Effects 15 | . . . 15 Message Errors 6 | . . . 6 Matter Fused 4 | . . . 4 Heat Flow Errors 1 | . . . 1 Data Loss (minor) 1 | . . . 1 Data Loss (major) 1 | . . . 1 Misfires 1 | . . . 1 Weapon Failures 1 | . . . 1 Overload Shots . | . . . . Overflow Damage . | . . . . Projectiles . | . . . . Explosions . | . . . . Melee . | . . . . Knockbacks 1 | . . . 1 Impact 1 | . . . 1 Kinetic . | . . . . Secondary . | . . . . Self-Inflicted Damage . | . . . . Shots . | . . . . Rammed . | . . . . Targets Rammed 8 | . . . 8 Kicked 8 | . . . 8 Crushed . | . . . . Highest Temperature 388 | . . . 388 Average Temperature 156 | . . . 156 Received Heat Transfer 702 | . . . 702 Effects 1 | . . . 1 Interference 1 | . . . 1 Siege Activations . | . . . . Robots Corrupted . | . . . . Combat Hostiles . | . . . . Parts Fried . | . . . . Impact Corruptions . | . . . . Robots Melted 1 | . . . 1 Combat Hostiles 1 | . . . 1 Parts Melted 1 | . . . 1 Heat Transferred 592 | . . . 592 Parts Sabotaged . | . . . . Parts Stolen . | . . . . Parts Stripped . | . . . . Power Chain Reactions . | . . . . Alert | -11 -10 -10 -9 ------- Run | Yrd Mat Min Mat Peak Influence 263 | . . 30 263 Initial 11 | . . . 11 Average 108 | . . 9 155 Maximum Alert Level 1 | . . . 1 Low Security (%) 81 | 100 100 100 73 Level 1 18 | . . . 26 Level 2 . | . . . . Level 3 . | . . . . Level 4 . | . . . . Level 5 . | . . . . High Security . | . . . . Max Security . | . . . . Squads Dispatched 2 | . 1 . 1 Investigation 1 | . 1 . . Extermination . | . . . . Reinforcement 1 | . . . 1 Assault . | . . . . Garrison . | . . . . Intercept . | . . . . Searches Triggered . | . . . . Construction Impeded . | . . . . Haulers Reinforced . | . . . . Active Scanning Responses . | . . . . Cargo Convoy Interrupts . | . . . . Stealth | -11 -10 -10 -9 --------- Run | Yrd Mat Min Mat Distress Signals 2 | . . . 2 Communications Jammed . | . . . . Distress Signals . | . . . . Times Spotted 30 | . 2 1 27 Peak Tracking Total 9 | . 3 2 9 Tactical Retreats 5 | . . 1 4 Traps | -11 -10 -10 -9 ------- Run | Yrd Mat Min Mat Traps Triggered 1 | . 1 . . Indirectly . | . . . . Trap Hack Attempts . | . . . . Triggered . | . . . . Disarmed . | . . . . Reprogrammed . | . . . . Reused . | . . . . Traps Extracted . | . . . . Installed . | . . . . Triggered . | . . . . Machines | -11 -10 -10 -9 ---------- Run | Yrd Mat Min Mat Machines Disabled 1 | . . . 1 Max in Single Turn 1 | . . . 1 Machines Repaired . | . . . . Machines Dismantled . | . . . . Machines Sabotaged . | . . . . Overloaded Fab Kills . | . . . . Hacking | -11 -10 -10 -9 --------- Run | Yrd Mat Min Mat Machines Accessed . | . . . . Terminals . | . . . . Fabricators . | . . . . Repair Stations . | . . . . Recycling Units . | . . . . Scanalyzers . | . . . . Garrison Access . | . . . . Total Hacks . | . . . . Successful . | . . . . Failed . | . . . . Catastrophic . | . . . . Database Lockouts . | . . . . Manual . | . . . . Terminals . | . . . . Fabricators . | . . . . Repair Stations . | . . . . Recycling Units . | . . . . Scanalyzers . | . . . . Garrison Access . | . . . . Terminal Hacks . | . . . . Fabricator Hacks . | . . . . Repair Station Hacks . | . . . . Recycling Unit Hacks . | . . . . Scanalyzer . | . . . . Garrison Access Hacks . | . . . . Unauthorized Hacks . | . . . . Terminals . | . . . . Fabricators . | . . . . Repair Stations . | . . . . Recycling Units . | . . . . Scanalyzers . | . . . . Garrison Access . | . . . . Data Cores Recovered . | . . . . Used . | . . . . Hacking Detections . | . . . . Full Trace Events . | . . . . Feedback Events . | . . . . Feedback Blocked . | . . . . Robot Schematics Acquired . | . . . . Robots Built . | . . . . Authchips . | . . . . Time . | . . . . Total Robot Build Rating . | . . . . Part Schematics Acquired . | . . . . Parts Built . | . . . . Authchips . | . . . . Time . | . . . . Total Part Build Rating . | . . . . Parts Repaired . | . . . . Time . | . . . . Parts Recycled . | . . . . Recycled Matter . | . . . . Retrieved Matter . | . . . . Retrieved Components . | . . . . Parts Scanalyzed . | . . . . Part Schematics Acquired . | . . . . Parts Damaged . | . . . . Bothacking | -11 -10 -10 -9 ------------ Run | Yrd Mat Min Mat Used RIF Installer . | . . . . Robots Hacked . | . . . . Non-combat . | . . . . Combat . | . . . . Robot Hacks Applied . | . . . . Relay Couplers Released . | . . . . Fabnet Peak Effective % . | . . . . Robots Rewired . | . . . . Allies Hacked . | . . . . Hacks Repelled . | . . . . Allies | -11 -10 -10 -9 -------- Run | Yrd Mat Min Mat Total Allies . | . . . . Largest Group . | . . . . Highest-Rated Group . | . . . . Highest-Rated Ally . | . . . . Total Orders . | . . . . Ally Attacks . | . . . . Total Damage . | . . . . Kills . | . . . . Allies Corrupted . | . . . . Allies Melted . | . . . . Intel | -11 -10 -10 -9 ------- Run | Yrd Mat Min Mat Robot Analysis Total . | . . . . Derelict Logs Recovered 1 | . . 1 . Drone Launches . | . . . . Drone Recoveries . | . . . . Exploration | -11 -10 -10 -9 ------------- Run | Yrd Mat Min Mat Turns Passed 873 | 67 91 116 599 Spaces Moved 597 | 53 82 127 335 Core 18 | 18 . . . Treads 8 | . . . 8 Legs 270 | 4 . . 266 Wheels 301 | 31 82 127 61 Hover . | . . . . Flight . | . . . . Fastest Speed 50 | 50 90 90 90 Average Speed 104 | 88 90 90 115 Slowest Speed 190 | 120 90 90 190 Overloaded Moves . | . . . . Propulsion Burnouts . | . . . . Robots Hopped . | . . . . Cave-ins Triggered . | . . . . Exploration Rate (%) 28 | 3 21 51 37 Regions Visited 3 Branch Regions 1 Pre-discovered Areas 1 | . . 1 . Known Exits Taken . | . . . . Unknown Exits Taken 3 | 1 1 1 . Scrap Searched . | . . . . Spaces Dug . | . . . . Terrain Destroyed . | . . . . Melee . | . . . . Projectile . | . . . . AOE . | . . . . Terrain Rammed . | . . . . Walls Destroyed . | . . . . Machines Disabled . | . . . . Actions | -11 -10 -10 -9 --------- Run | Yrd Mat Min Mat Total 762 | 72 99 128 463 Wait 48 | . 14 2 32 Move 594 | 52 81 126 335 Hop . | . . . . Pick Up 33 | 12 2 . 19 Fast Attach . | . . . . Attach 21 | 6 1 . 14 Detach . | . . . . Swap 8 | 2 . . 6 Drop 6 | . 1 . 5 Fire 44 | . . . 44 Melee . | . . . . Ram . | . . . . Kick 8 | . . . 8 Crush . | . . . . Escape Stasis . | . . . . Rewire . | . . . . Trap . | . . . . Miscellaneous . | . . . . Route ------- -11/Scrapyard -10/Materials -10/Mines -9/Materials History --------- Turn | Location | Event 18 | -11/Scrapyard | Discovered new exit (range 15) 68 | -11/Scrapyard | Entered Materials 154 | -10/Materials | Discovered new exit (range 7) 159 | -10/Materials | Entered Mines 177 | -10/Mines | Learned location of Zion (-6) 265 | -10/Mines | Discovered new exit (range 12) 275 | -10/Mines | Entered Materials 275 | -9/Materials | Evolved 2 slots: Propulsion x1, Utility x1 315 | -9/Materials | Build established: Mutant 403 | -9/Materials | Core integrity fell below 50% 433 | -9/Materials | Lost 5 parts (1p1n1u2w) 542 | -9/Materials | Core integrity fell below 20% 582 | -9/Materials | Lost 4 parts (1p3n) 836 | -9/Materials | Build established: Scavenger-Mutant 874 | -9/Materials | Destroyed by S-10 Pest with Light Assault Rifle Last Messages --------------- Rifle. 00729_ R-06 Scavenger collects Lgt. Ion Engine. 00733_ R-06 Scavenger collects Flight Unit. 00737_ R-06 Scavenger collects Assault Rifle. 00748_ T-07 Excavator is excavating. 00752_ System corrupted: Matter fused (-5). 00752_ T-07 Excavator is excavating. 00770_ U-05 Engineer lays Concrete. 00775_ K-01 Serf collects debris. 00781_ T-07 Excavator is excavating. 00782_ U-05 Engineer lays Concrete. 00784_ U-05 Engineer builds a Wall. 00785_ T-07 Excavator is excavating. 00788_ System corrupted: Matter fused (-10). 00809_ G-34 Mercenary destroyed. 00813_ Acquired 25 matter. 00815_ Dropped Aluminum Leg. 00821_ QG>%WAHETVLMPWYFVK3BRIJUBZ PNYK#BB4V/ 00838_ System corrupted: Matter fused (-9). 00869_ Electrolysis Chamber disabled. Map ----- +----------------------------------------------------+ | ## = ###"###???# #??# #????????????? | | ####+### % #???# #?####+#####??????????? | | """ # ##### #?# #??????????? | | """"" + #?# """ #??????????? | | """"" # #######?# """ #??????????? | | """"" ### #### #???????# """ #??????????? | | """ #?# #??### ###???????# #??????????? | | #?#"#???## #?????????#"" #??????????? | | #####+#### ?? # /?????????#"Y #??????????? | | # ?? # #?????????#"" #??????????? | | ! # ""?? # #?????????# #??????????? | | # """" # #?????????#+########??????????? | | %# """" # #?????????# #?????????????????? | | ########/# # #?????????# #?????????????????? | | ?# %# """" # #?????????# #?????????????????? | | ?# ##### # """" *# #??????#??# #????????????? ?? | | ##+##### # """" # #????? #??# #????????????? ? | | # # # #????# #??# #???????????? ? | | # #?? # ###### #### #????????????# #? | | # #####+### ## #????????????# #? | | # ## #????????????+ #? | | + ## #????????????# #? | | # """ """ ## #????????????# #? | | ### ### """ """ T# #????????????# #? | | #?# ### """ """ ## #????????????# #? | | #?# #"" @ ## #????????????# #? | | ####/###?# #"" s ##*#????????????# #? | | ???# #???# #"T """ s "" ##=#?#######???## ## | | ???# #???# #"" """ """ u## ### ##### # | | ???# #???# #"" """ """ | | ???# ##### ### | | ???# #?# | | ???#########?# ########## ##### # | | ?????????????# Y####????????#######???# # | | ?###?????????# #?????????????????????# # | | ##! #######??# #?????????????????????# # | | #! #### ####################### # | | #! # | | #! # | | #! # | | ?#! ##########/######+############## # | | ?##### ##??????? # ########## # | | ?????# #?????? # """ """ # #= # | | ?????# #?????# # """ """ # !+% # | | ?????# #?????# "" # """ """ # [# # | | ?????# #?????# S"" # # # # | | ?????# #????? "" # ########## # | | ?????# #????######### [/ ????#### # | | ?????#####????????????? | // ????## # # | | ???????????????????????#########????# # | +----------------------------------------------------+ Best States ------------- Heat Dissipation 38 Energy Generation 12 Energy Capacity 265 Matter Stores 383 Matter Capacity 400 Sight Range 16 Terrain Scan Density 10 Armor Coverage 150 Evasion (%) 55 Recoil Reduction 2 Item Schematics ----------------- None Robot Schematics ------------------ None Fabricated ------------ Nothing Alien Tech Used ----------------- None Achievements -------------- None Challenges ------------ None Game ------ Seed LongswordScatterTerminator Manual? 0 Play Time 00:17:49 Cumulative 22.0 hours Start 2024.05.24 @ 16:03:35 End 2024.05.24 @ 16:19:20 Sessions 1 Manual Loads 0 Difficulty Rogue Special Mode None Game No. 8 Rogue 7 Adventurer 1 Explorer 0 Win Type - Total 0 Types 0/0/0/0/0/0/0/0/0 Lore% 2 Gallery% 24 Achievement% 20 Wizard Run 0 Options --------- Layout 2 ASCII 0 Keyboard 0 Movement Mouse Keybinds 0 Fullscreen 1 Font 32/SmallcapsGlow Map View 50x44 Zoom Use 0% Tactical HUD 1 Map Filters NONE Filters NONE Steam 1 RUN: 57ec18cb-8fbf-445f-bbc2-260e075c8a78